Cogmind - Beta 16.1 @@@ ROGUE MODE // 2026.02.18 @ 00:10:16 Player: Exceptionally Mediocre Result: Destroyed by G-34 Mercenary with Small Laser Performance ------------- Evolutions (0) 0 Regions Visited (1) 200 Robots Destroyed (35) 175 Value Destroyed (532) 532 Prototype IDs (1) 20 Alien Tech Used (0) 0 Bonus (0) 0 TOTAL SCORE: 927 Bonus ------- None Cogmind --------- Core Integrity 0/250 Matter 288/300 Energy 280/280 System Corruption 2% Temperature Cool (6) Movement Treading (240) Ox1 Location -10/Materials Parts ------- > --- POWER (1) -------- Cooled Ion Engine (fused) > --- PROPULSION (2) --- Light Treads Light Treads > --- UTILITY (2) ------ High-capacity Storage Unit Hardened Light Armor Plating > --- WEAPON (2) ------- Particle Gun Assault Rifle > --- INVENTORY (20) --- Ion Engine Cooled Ion Engine Cooled Ion Engine Cooled Ion Engine Light Treads Light Treads Light Treads Wheel Compact Wheel Heat Sink Improved Targeting Computer Hardened Light Armor Plating Particle Gun Assault Rifle Mini Grenade Launcher Mini Grenade Launcher Peak State ------------ > --- POWER ------------ Cooled Ion Engine > --- PROPULSION ------- Light Treads Light Treads > --- UTILITY ---------- Large Storage Unit Hardened Light Armor Plating > --- WEAPON ----------- Particle Gun Mini Grenade Launcher > --- INVENTORY -------- Ion Engine Cooled Ion Engine Cooled Ion Engine Cooled Ion Engine Light Treads Light Treads Light Treads Wheel Compact Wheel Improved Targeting Computer Hardened Light Armor Plating Hardened Light Armor Plating Particle Gun Mini Grenade Launcher [Rating: 14] Favorites ----------- Power Cooled Ion Engine Engine Cooled Ion Engine Propulsion Light Treads Treads Light Treads Utility Hardened Light Armor Plating Device Improved Terrain Scanner Storage Large Storage Unit Protection Hardened Light Armor Plating Weapon Assault Rifle Energy Gun Particle Gun Ballistic Gun Assault Rifle Launcher Mini Grenade Launcher Special Weapon Mining Laser Build | -11 -10 ------- Run | Yrd Mat Slots Evolved . | . . Power . | . . Propulsion . | . . Utility . | . . Weapon . | . . Parts Attached 21 | 7 14 Power 2 | 1 1 Engine 2 | 1 1 Core . | . . Reactor . | . . Propulsion 6 | 2 4 Treads 6 | 2 4 Leg . | . . Wheel . | . . Hover . | . . Flight . | . . Utility 6 | 2 4 Device 1 | 1 . Storage 3 | 1 2 Processor . | . . Hackware . | . . Protection 2 | . 2 Artifact . | . . Weapon 7 | 2 5 Energy Gun 2 | 1 1 Energy Cannon . | . . Ballistic Gun 2 | 1 1 Ballistic Cannon . | . . Launcher 2 | . 2 Special Weapon 1 | . 1 Impact Weapon . | . . Slashing Weapon . | . . Piercing Weapon . | . . Special Melee Weapon . | . . Unidentified Prototypes 1 | . 1 Parts Lost 2 | . 2 Power . | . . Propulsion . | . . Utility 1 | . 1 Weapon 1 | . 1 Highest Loss Streak 1 | . 1 To Critical Strikes . | . . Average Backups 12 | 4 13 Power 3 | 1 3 Propulsion 4 | 2 4 Utility 1 | . 1 Weapon 3 | 1 3 Tool/Special . | . . Unused Backups 20 | . 20 Power 5 | . 5 Propulsion 5 | . 5 Utility 5 | . 5 Weapon 5 | . 5 Tool/Special . | . . Average Slot Usage (%) 99 | . 99 Engine 14 | . 14 Treads 28 | . 28 Device 4 | . 4 Storage 14 | . 14 Protection 9 | . 9 Energy Gun 10 | . 10 Ballistic Gun 11 | . 11 Launcher 2 | . 2 Special Weapon 2 | . 2 Peak Build Rating 14 | 9 14 Average Rating 11 | 5 12 On Entrance 4 | . 9 Avg Prop Armor Cover (%) . | . . Naked Turns . | . . Heaviest Build 58 | 14 58 Greatest Support 40 | 40 40 Greatest Overweight (x) 4 | 4 1 Average Overweight (x) . | . . Largest Inventory Capacity 20 | 8 20 Average Capacity 15 | 7 16 Most Carried 16 | 8 16 Average Carried 12 | 4 13 Final Capacity 20 | 8 20 Final Carried 16 | 8 16 Class Distribution -------------------- 100% | Mutant Dominant Class ---------------- Mutant | -10/Materials Resources | -11 -10 ----------- Run | Yrd Mat Matter Collected 614 | 278 336 Remotely . | . . Salvage Created 677 | 154 523 Parts 59 | 12 47 Haulers Intercepted 2 | . 2 Recyclers Shooed 1 | . 1 Parts Field Recycled . | . . Retrieved Matter . | . . Parts Self-Destructed . | . . Prevented . | . . Parts Restored . | . . Kills | -11 -10 ------- Run | Yrd Mat Combat Hostiles Destroyed 17 | . 17 Guns 8 | . 8 AOE 9 | . 9 Classes Destroyed 9 | 3 6 Worker 5 | 2 3 Builder 4 | . 4 Tunneler 2 | 2 . Hauler 2 | . 2 Recycler 1 | 1 . Operator 2 | . 2 Watcher 2 | . 2 Swarmer 8 | . 8 Grunt 9 | . 9 Best Kill Streak 7 | 3 7 Combat Bots Only 3 | . 3 Max Kills in Single Turn 2 | 1 2 Gunslinging . | . . Exploded 2 | . 2 Melee . | . . Uniques/NPCs Destroyed . | . . Combat | -11 -10 -------- Run | Yrd Mat Hostile Shots Fired 133 | . 133 Missed 19 | . 19 Hits 114 | . 114 Projectile 114 | . 114 Critical Strikes 1 | . 1 Damage Taken 1350 | . 1350 Core 253 | . 253 Absorbed by Shields . | . . Core Remaining (%) 100 | 100 . Volleys Fired 117 | 12 105 Largest 2 | 2 2 Hottest 120 | 60 120 Shots Fired 190 | 24 166 Gun 160 | 24 136 Cannon . | . . Launcher 18 | . 18 Special 12 | . 12 Kinetic 72 | 12 60 Thermal 100 | 12 88 Explosive 18 | . 18 Electromagnetic . | . . Robot Hit Streak 13 | 9 13 Robot Miss Streak 6 | 1 6 Penetration Max . | . . Secondary Targets 2 | . 2 Max Gunslinging Chain 1 | . 1 Shots Hit Robots 101 | 18 83 Core Hits 51 | 6 45 Critical Kills . | . . Critical Parts Destroyed . | . . Critical Strikes 1 | . 1 Burn 1 | . 1 Melee Attacks . | . . Impact . | . . Slashing . | . . Piercing . | . . Sneak Attacks . | . . Combat Hostiles . | . . Follow-up Attacks . | . . Damage Inflicted 2259 | 215 2044 Guns 1216 | 215 1001 Cannons . | . . Explosions 971 | . 971 Melee . | . . Ramming . | . . Kinetic 481 | 114 367 Thermal 807 | 101 706 Explosive 971 | . 971 Electromagnetic . | . . Impact . | . . Slashing . | . . Piercing . | . . Highest Corruption 2 | . 2 Average Corruption 2 | . 2 Corruption Purged . | . . Corruption Blocked . | . . Effects 28 | . 28 Message Errors 4 | . 4 Matter Fused 6 | . 6 Heat Flow Errors 2 | . 2 Energy Discharges 7 | . 7 Parts Fused 1 | . 1 Data Loss (minor) 1 | . 1 Data Loss (major) 1 | . 1 Misfires 4 | . 4 Alerts 2 | . 2 Overload Shots . | . . Overflow Damage 18 | . 18 Projectiles . | . . Explosions 18 | . 18 Melee . | . . Knockbacks . | . . Impact . | . . Kinetic . | . . Secondary . | . . Self-Inflicted Damage 167 | . 167 Shots 8 | . 8 Rammed . | . . Targets Rammed . | . . Kicked . | . . Crushed . | . . Highest Temperature 306 | . 306 Average Temperature 100 | . 100 Received Heat Transfer 510 | . 510 Siege Activations . | . . Martial Activations . | . . Shielding Activations . | . . Robots Disrupted . | . . Combat Hostiles . | . . Robots Corrupted . | . . Combat Hostiles . | . . Parts Fried . | . . Impact Corruptions . | . . Robots Melted . | . . Combat Hostiles . | . . Parts Melted . | . . Heat Transferred 1971 | 225 1746 Parts Sabotaged . | . . Parts Stolen . | . . Parts Stripped . | . . Power Chain Reactions . | . . Alert | -11 -10 ------- Run | Yrd Mat Maximum Alert Level 1 | . 1 Low Security (%) 74 | 100 72 Level 1 25 | . 27 Level 2 . | . . Level 3 . | . . Level 4 . | . . Level 5 . | . . High Security . | . . Max Security . | . . Peak Influence 262 | 5 262 Initial . | . . Average 118 | 1 127 Influence Increases 658 | 25 633 Destroy 0b10 Robot/C 340 | . 340 Destroy 0b10 Robot/NC 90 | 25 65 Destroy Leader 78 | . 78 Successful Hack 5 | . 5 Disable Machine 30 | . 30 Destroy Structure 85 | . 85 Lose Combat Pursuer 30 | . 30 Influence Decreases 573 | 25 548 Time Decay 543 | 25 518 Lost Part 20 | . 20 Purge Threat 10 | . 10 Squads Dispatched 6 | . 6 Investigation 4 | . 4 Extermination . | . . Reinforcement 2 | . 2 Assault . | . . Garrison . | . . Intercept . | . . Searches Triggered . | . . Construction Impeded . | . . Haulers Reinforced . | . . Active Scanning Responses . | . . Cargo Convoy Interrupts . | . . Stealth | -11 -10 --------- Run | Yrd Mat Distress Signals 1 | . 1 Communications Jammed . | . . Distress Signals . | . . Times Spotted 40 | . 40 Peak Tracking Total 4 | . 4 Tactical Retreats 2 | . 2 Traps | -11 -10 ------- Run | Yrd Mat Traps Triggered 3 | . 3 Indirectly . | . . Trap Hack Attempts . | . . Triggered . | . . Disarmed . | . . Reprogrammed . | . . Reused . | . . Traps Extracted . | . . Installed . | . . Triggered . | . . Machines | -11 -10 ---------- Run | Yrd Mat Machines Disabled 2 | . 2 Max in Single Turn 1 | . 1 Machines Repaired . | . . Machines Dismantled . | . . Machines Sabotaged . | . . Overloaded Fab Kills . | . . Hacking | -11 -10 --------- Run | Yrd Mat Machines Accessed 6 | . 6 Terminals 4 | . 4 Fabricators . | . . Repair Stations . | . . Recycling Units 2 | . 2 Scanalyzers . | . . Garrison Access . | . . Total Hacks 24 | . 24 Successful 16 | . 16 Failed 8 | . 8 Catastrophic 3 | . 3 Database Lockouts . | . . Manual 17 | . 17 Terminals 16 | . 16 Fabricators . | . . Repair Stations . | . . Recycling Units 8 | . 8 Scanalyzers . | . . Garrison Access . | . . Terminal Hacks 4 | . 4 Unreport Threat 1 | . 1 Recall Investigation 2 | . 2 Recall Reinforcements 1 | . 1 Fabricator Hacks . | . . Repair Station Hacks . | . . Recycling Unit Hacks 7 | . 7 Process 1 | . 1 Report Inventory 4 | . 4 Retrieve Matter 2 | . 2 Scanalyzer . | . . Garrison Access Hacks . | . . Unauthorized Hacks 5 | . 5 Terminals 4 | . 4 Botnet 4 | . 4 Fabricators . | . . Repair Stations . | . . Recycling Units 1 | . 1 Monitor 1 | . 1 Scanalyzers . | . . Garrison Access . | . . Data Cores Recovered . | . . Used . | . . Hacking Detections 4 | . 4 Full Trace Events 2 | . 2 Feedback Events . | . . Feedback Blocked . | . . Robot Schematics Acquired . | . . Robots Built . | . . Authchips . | . . Time . | . . Total Robot Build Rating . | . . Part Schematics Acquired . | . . Parts Built . | . . Authchips . | . . Time . | . . Total Part Build Rating . | . . Part Studies Acquired . | . . Parts Repaired . | . . Time . | . . Parts Recycled . | . . Recycled Matter 255 | . 255 Retrieved Matter 369 | . 369 Retrieved Components . | . . Parts Scanalyzed . | . . Part Schematics Acquired . | . . Parts Damaged . | . . Bothacking | -11 -10 ------------ Run | Yrd Mat Used RIF Installer . | . . Robots Hacked . | . . Non-combat . | . . Combat . | . . Robot Hacks Applied . | . . Relay Couplers Released . | . . Fabnet Peak Effective % . | . . Robots Rewired . | . . Allies Hacked . | . . Hacks Repelled . | . . Allies | -11 -10 -------- Run | Yrd Mat Total Allies . | . . Largest Group . | . . Highest-Rated Group . | . . Highest-Rated Ally . | . . Total Orders . | . . Ally Attacks . | . . Total Damage . | . . Kills . | . . Allies Corrupted . | . . Allies Melted . | . . Intel | -11 -10 ------- Run | Yrd Mat Active Infowar (turns) 716 | 9 707 Terrain 716 | 9 707 Robot Analysis Total . | . . Derelict Logs Recovered . | . . Drone Launches . | . . Drone Recoveries . | . . Exploration | -11 -10 ------------- Run | Yrd Mat Turns Passed 2269 | 165 2104 Spaces Moved 1005 | 71 934 Core 10 | 10 . Treads 995 | 61 934 Legs . | . . Wheels . | . . Hover . | . . Flight . | . . Fastest Speed 50 | 50 160 Average Speed 186 | 157 188 Slowest Speed 250 | 250 240 Overloaded Moves . | . . Propulsion Burnouts . | . . Robots Hopped . | . . Potential Cave-ins 2 | . 2 Cave-ins Triggered . | . . Exploration Rate (%) 48 | 4 92 Regions Visited 1 Branch Regions . Pre-discovered Areas . | . . Known Exits Taken . | . . Unknown Exits Taken 1 | 1 . Scrap Searched . | . . Spaces Dug 8 | . 8 Terrain Destroyed 97 | . 97 Melee . | . . Projectile 9 | . 9 AOE 88 | . 88 Terrain Rammed . | . . Walls Destroyed . | . . Machines Disabled . | . . Actions | -11 -10 --------- Run | Yrd Mat Total 1201 | 97 1104 Wait 3 | . 3 Move 1004 | 70 934 Hop . | . . Pick Up 28 | 8 20 Fast Attach 10 | 7 3 Attach 7 | . 7 Detach 5 | . 5 Swap 8 | . 8 Drop 19 | . 19 Fire 117 | 12 105 Melee . | . . Ram . | . . Kick . | . . Crush . | . . Escape Stasis . | . . Rewire . | . . Trap . | . . Miscellaneous . | . . Route ------- -11/Scrapyard -10/Materials (discovered 5 exits: [*Mat x3] / [*Min] / [*Sub]) History --------- Turn | Location | Event 2 | -11/Scrapyard | Met Revision 17 16 | -11/Scrapyard | Discovered new exit (range 16) 166 | -11/Scrapyard | Entered Materials 313 | -10/Materials | Build established: Mutant 457 | -10/Materials | Discovered new exit (range 7) 534 | -10/Materials | Discovered new exit (range 9) 671 | -10/Materials | Discovered new exit (range 5) 696 | -10/Materials | Core integrity fell below 50% 1086 | -10/Materials | Core integrity fell below 20% 1400 | -10/Materials | Discovered new exit (range 6) 1876 | -10/Materials | Discovered new exit (range 9) 2270 | -10/Materials | Destroyed by G-34 Mercenary with Small Laser Last Messages --------------- Transport Network Coupler (6) Assault Rifle (50) Assault Rifle (50) Lgt. Treads (4) Assault Rifle (50) Weight Redist. System (6) Aluminum Leg (21) 02086_ Connecting with Recycling Unit... >>Recycling(Report) Matter reserves: 255 Inventory: Empty >>Retrieve(Matter) Matter ejected: 255 02092_ FN4VQJ0Z18,WRN85B&VGK/LUH3O 02144_ System corrupted: Matter fused (-7). 02188_ System corrupted: Matter fused (-5). 02242_ C,V2NXWDWZ/UT=1DJTG53H0YOWCMDUI/EQ1L 02249_ Connecting with Terminal... 02249_ ALERT: Suspicious activity at Terminal M004. Dispatching Investigation squad. Map ----- +----------------------------------------------------+ | ???????????# #??????????????#########+ | | ???????????# #??????????????# | | ???????????# #??????????????# """ """ | | ???????????# !! #????????????#?# """ """ | | ???????????# !! #??????????????# """ """ | | ???????????# !! #??????????????# | | ???????????# #??????#???#???# | | ????????#??# #####################+### | | ????#??????# !! #? | | ???????????# !!! #? | | ?????????### !! #? | | ??????????## ########################### #? | | ?????????### #########???????########### ## | | ????## ### # #[[ #?#???#??# # | | ???##### # # [ [##???????# # | | ???# # #[% #??####### # ## | | ???# ## # #### # # ## | | ???# # # # # | | ???# # # + # | | ???# = + # # # | | ???# # ########## # # # | | ???######## ####?????## ############ # | | ?#??????## ##???????# #???# # | | ?????#??# #?????### ##### + | | ????????# ######### g g # | | ????????# < + @ #####^^^######## | | ????????# ##########+###### #?#?#?? | | ????????#"" ""#?# # < ##?#??? | | ????????##"!!!"##?# """ """ # #?#????## | | ?????????##"""##??# """ """ #####?????#?? | | ??????????#####???# """ """ "T" #????#????#?? | | ??????????????????# """ #???????????? | | ???????#??????#??## #?#?????????? | | ?????????????#????###############??#??#?#???? | | | | | | | | | | | | | | | | | | | | | | | | | | | | | | | | | +----------------------------------------------------+ Best States ------------- Heat Dissipation 25 Energy Generation 14 Energy Capacity 280 Matter Stores 300 Matter Capacity 300 Sight Range 16 Terrain Scan Range 16 Terrain Scan Density 10 Armor Coverage 150 Evasion (%) 40 Recoil Reduction 2 Item Schematics ----------------- None Robot Schematics ------------------ None Fabricated ------------ Nothing Repaired ---------- Nothing Studied --------- None Alien Tech Used ----------------- None Achievements -------------- None Challenges ------------ None Game ------ Seed AntigravLaserForcegen Manual? 0 Play Time 00:22:07 Cumulative 172.6 hours Start 2026.02.17 @ 23:51:28 End 2026.02.18 @ 00:10:16 Sessions 1 Manual Loads 0 Difficulty Rogue Special Mode None Game No. 199 Rogue 199 Adventurer 0 Explorer 0 Win Type - Total 0 Types 0/0/0/0/0/0/0/0/0/0 Lore% 25 Gallery% 50 Achievement% 25 Wizard Run 0 Options --------- Layout 1 ASCII 0 Keyboard 1 Movement Vi Keybinds 0 Fullscreen 1 Font 24/Smallcaps Map View 50x35 Zoom Use 0% Tactical HUD 1 Map Filters NONE Filters NONE Steam 1 RUN: 1e5292c7-e4ce-4317-854c-4efa0b255ae8